[Event "Titled Tuesday Blitz November 01 Early 2022"]
[White "Toshali, V"]
[Black "Cramling Bellon, Anna"]
[WhiteFideId "5072611"]
[BlackFideId "32009232"]
[WhiteElo "1973"]
[BlackElo "1972"]
[Result "0-1"]
[Round "04"]
[TimeControl "180+1"]
[Date "2022.11.02"]
[WhiteClock "0:00:01"]
[BlackClock "0:00:01"]

1. d4 {[%clk 0:03:00]}  Nf6 {[%clk 0:02:59]} 2. Nf3 {[%clk 0:02:59]}  d5 {[%clk 0:02:54]} 3. Bf4 {[%clk 0:02:58]}  c5 {[%clk 0:02:52]} 4. c3 {[%clk 0:02:57]}  Nc6 {[%clk 0:02:52]} 5. e3 {[%clk 0:02:57]}  Qb6 {[%clk 0:02:50]} 6. Qb3 {[%clk 0:02:16]}  c4 {[%clk 0:02:49]} 7. Qxb6 {[%clk 0:02:16]}  axb6 {[%clk 0:02:49]} 8. Nbd2 {[%clk 0:02:15]}  b5 {[%clk 0:02:47]} 9. a3 {[%clk 0:02:15]}  b4 {[%clk 0:02:45]} 10. cxb4 {[%clk 0:02:15]}  Nxb4 {[%clk 0:02:45]} 11. Rc1 {[%clk 0:02:15]}  Nc6 {[%clk 0:02:35]} 12. Ne5 {[%clk 0:02:09]}  Bf5 {[%clk 0:02:27]} 13. f3 {[%clk 0:02:03]}  e6 {[%clk 0:02:18]} 14. e4 {[%clk 0:01:56]}  Bg6 {[%clk 0:02:03]} 15. exd5 {[%clk 0:01:47]}  exd5 {[%clk 0:02:02]} 16. g4 {[%clk 0:01:33]}  Nxd4 {[%clk 0:01:55]} 17. g5 {[%clk 0:01:19]}  Nh5 {[%clk 0:01:51]} 18. Be3 {[%clk 0:01:17]}  Nc2+ {[%clk 0:01:49]} 19. Kf2 {[%clk 0:01:13]}  Nxe3 {[%clk 0:01:49]} 20. Kxe3 {[%clk 0:01:13]}  Bc5+ {[%clk 0:01:46]} 21. Ke2 {[%clk 0:01:13]}  Nf4+ {[%clk 0:01:42]} 22. Kd1 {[%clk 0:01:13]}  O-O {[%clk 0:00:52]} 23. Nd7 {[%clk 0:01:03]}  Rfc8 {[%clk 0:00:52]} 24. Nxc5 {[%clk 0:01:03]}  Rxc5 {[%clk 0:00:52]} 25. Nb3 {[%clk 0:01:03]}  Rcc8 {[%clk 0:00:46]} 26. Nd4 {[%clk 0:01:02]}  Nd3 {[%clk 0:00:46]} 27. Rc2 {[%clk 0:00:48]}  Re8 {[%clk 0:00:41]} 28. Bxd3 {[%clk 0:00:38]}  Bxd3 {[%clk 0:00:37]} 29. Rd2 {[%clk 0:00:36]}  f6 {[%clk 0:00:31]} 30. gxf6 {[%clk 0:00:34]}  gxf6 {[%clk 0:00:31]} 31. Rg1+ {[%clk 0:00:34]}  Kf7 {[%clk 0:00:32]} 32. Nb5 {[%clk 0:00:32]}  Rad8 {[%clk 0:00:29]} 33. Rdg2 {[%clk 0:00:25]}  Bg6 {[%clk 0:00:13]} 34. Nd4 {[%clk 0:00:23]}  Rg8 {[%clk 0:00:10]} 35. h4 {[%clk 0:00:21]}  Bh5 {[%clk 0:00:09]} 36. Rxg8 {[%clk 0:00:19]}  Rxg8 {[%clk 0:00:10]} 37. Rxg8 {[%clk 0:00:19]}  Kxg8 {[%clk 0:00:11]} 38. Ke2 {[%clk 0:00:20]}  Kf7 {[%clk 0:00:10]} 39. Ke3 {[%clk 0:00:20]}  Bg6 {[%clk 0:00:09]} 40. Kf4 {[%clk 0:00:19]}  Ke7 {[%clk 0:00:09]} 41. Kg4 {[%clk 0:00:18]}  Kd6 {[%clk 0:00:09]} 42. h5 {[%clk 0:00:18]}  Bd3 {[%clk 0:00:09]} 43. f4 {[%clk 0:00:18]}  Kc5 {[%clk 0:00:08]} 44. Ne6+ {[%clk 0:00:17]}  Kb5 {[%clk 0:00:09]} 45. f5 {[%clk 0:00:15]}  b6 {[%clk 0:00:04]} 46. h6 {[%clk 0:00:14]}  Ka4 {[%clk 0:00:04]} 47. Nd4 {[%clk 0:00:13]}  b5 {[%clk 0:00:04]} 48. Kf4 {[%clk 0:00:09]}  b4 {[%clk 0:00:03]} 49. axb4 {[%clk 0:00:09]}  Kxb4 {[%clk 0:00:04]} 50. Ke3 {[%clk 0:00:08]}  Be4 {[%clk 0:00:02]} 51. Kf4 {[%clk 0:00:08]}  Kc5 {[%clk 0:00:02]} 52. Ne6+ {[%clk 0:00:07]}  Kb4 {[%clk 0:00:02]} 53. Nf8 {[%clk 0:00:07]}  Kb3 {[%clk 0:00:02]} 54. Nxh7 {[%clk 0:00:07]}  Kxb2 {[%clk 0:00:02]} 55. Nxf6 {[%clk 0:00:07]}  c3 {[%clk 0:00:03]} 56. h7 {[%clk 0:00:07]}  c2 {[%clk 0:00:03]} 57. Nxe4 {[%clk 0:00:06]}  c1=Q+ {[%clk 0:00:02]} 58. Ke5 {[%clk 0:00:03]}  Qh1 {[%clk 0:00:02]} 59. Ng5 {[%clk 0:00:02]}  Qh2+ {[%clk 0:00:02]} 60. Kxd5 {[%clk 0:00:02]}  Qh1+ {[%clk 0:00:01]} 61. Ke6 {[%clk 0:00:01]}  Kc3 {[%clk 0:00:01]} 0-1


[Site "https://www.chess.com"]

[Event "Titled Tuesday Blitz November 01 Early 2022"]
[White "Troltenier, Dirk"]
[Black "Reprintsev, Alexander"]
[WhiteFideId "4606400"]
[BlackFideId "14100541"]
[WhiteElo "2334"]
[BlackElo "2230"]
[Result "0-1"]
[Round "04"]
[TimeControl "180+1"]
[Date "2022.11.02"]
[WhiteClock "0:00:02"]
[BlackClock "0:01:25"]

1. e4 {[%clk 0:02:59]}  d5 {[%clk 0:02:57]} 2. exd5 {[%clk 0:02:59]}  Qxd5 {[%clk 0:02:45]} 3. Nc3 {[%clk 0:02:59]}  Qa5 {[%clk 0:02:41]} 4. d4 {[%clk 0:02:59]}  Nf6 {[%clk 0:02:40]} 5. Nf3 {[%clk 0:02:58]}  Nc6 {[%clk 0:02:39]} 6. d5 {[%clk 0:02:37]}  Nb4 {[%clk 0:02:38]} 7. Bb5+ {[%clk 0:02:28]}  Bd7 {[%clk 0:02:36]} 8. Bxd7+ {[%clk 0:02:21]}  Nxd7 {[%clk 0:02:35]} 9. Bf4 {[%clk 0:02:12]}  Nf6 {[%clk 0:02:31]} 10. O-O {[%clk 0:02:08]}  Nbxd5 {[%clk 0:02:29]} 11. Nxd5 {[%clk 0:02:01]}  Nxd5 {[%clk 0:02:27]} 12. Be5 {[%clk 0:01:44]}  e6 {[%clk 0:02:25]} 13. c4 {[%clk 0:01:40]}  Nf6 {[%clk 0:02:21]} 14. Bxf6 {[%clk 0:01:35]}  gxf6 {[%clk 0:02:20]} 15. Qd4 {[%clk 0:01:34]}  Be7 {[%clk 0:02:15]} 16. Rfd1 {[%clk 0:01:25]}  Rd8 {[%clk 0:02:05]} 17. Qe4 {[%clk 0:01:25]}  c6 {[%clk 0:02:00]} 18. a3 {[%clk 0:01:15]}  f5 {[%clk 0:01:52]} 19. Qf4 {[%clk 0:00:52]}  Bf6 {[%clk 0:01:43]} 20. Rxd8+ {[%clk 0:00:15]}  Qxd8 {[%clk 0:01:41]} 21. Re1 {[%clk 0:00:07]}  Bxb2 {[%clk 0:01:34]} 22. h4 {[%clk 0:00:02]}  O-O {[%clk 0:01:25]} 0-1


[Site "https://www.chess.com"]

[Event "Titled Tuesday Blitz November 01 Early 2022"]
[White "Turutin, Alexander"]
[Black "Yuan, Qingyu"]
[WhiteFideId "4180623"]
[BlackFideId "8609772"]
[WhiteElo "2402"]
[BlackElo "2359"]
[Result "0-1"]
[Round "04"]
[TimeControl "180+1"]
[Date "2022.11.02"]
[WhiteClock "0:00:04"]
[BlackClock "0:00:05"]

1. e4 {[%clk 0:02:59]}  c6 {[%clk 0:02:59]} 2. d4 {[%clk 0:02:53]}  d5 {[%clk 0:02:58]} 3. e5 {[%clk 0:02:54]}  c5 {[%clk 0:02:59]} 4. Nf3 {[%clk 0:02:53]}  cxd4 {[%clk 0:02:56]} 5. Qxd4 {[%clk 0:02:54]}  Nc6 {[%clk 0:02:55]} 6. Qf4 {[%clk 0:02:54]}  e6 {[%clk 0:02:56]} 7. Bd3 {[%clk 0:02:52]}  Nb4 {[%clk 0:02:56]} 8. O-O {[%clk 0:02:46]}  Nxd3 {[%clk 0:02:55]} 9. cxd3 {[%clk 0:02:47]}  Ne7 {[%clk 0:02:56]} 10. Nc3 {[%clk 0:02:44]}  Bd7 {[%clk 0:02:50]} 11. Be3 {[%clk 0:02:40]}  Ng6 {[%clk 0:02:39]} 12. Qg3 {[%clk 0:02:37]}  Be7 {[%clk 0:02:40]} 13. Ne2 {[%clk 0:02:20]}  O-O {[%clk 0:02:34]} 14. Nf4 {[%clk 0:02:20]}  Bb5 {[%clk 0:02:26]} 15. Nxg6 {[%clk 0:01:59]}  fxg6 {[%clk 0:02:26]} 16. Nd4 {[%clk 0:01:53]}  Qb6 {[%clk 0:01:54]} 17. Rfc1 {[%clk 0:01:30]}  Rac8 {[%clk 0:01:24]} 18. Nf5 {[%clk 0:01:02]}  Rxc1+ {[%clk 0:01:10]} 19. Rxc1 {[%clk 0:01:03]}  Qd8 {[%clk 0:01:10]} 20. Nxe7+ {[%clk 0:00:58]}  Qxe7 {[%clk 0:01:10]} 21. Bxa7 {[%clk 0:00:59]}  Qb4 {[%clk 0:00:53]} 22. b3 {[%clk 0:00:35]}  Qa3 {[%clk 0:00:38]} 23. Qe3 {[%clk 0:00:34]}  Qxa2 {[%clk 0:00:33]} 24. Qb6 {[%clk 0:00:34]}  Bc6 {[%clk 0:00:24]} 25. Qd4 {[%clk 0:00:21]}  Qxb3 {[%clk 0:00:20]} 26. Bc5 {[%clk 0:00:21]}  Ra8 {[%clk 0:00:19]} 27. h4 {[%clk 0:00:21]}  h6 {[%clk 0:00:19]} 28. Qg4 {[%clk 0:00:14]}  Kf7 {[%clk 0:00:13]} 29. Re1 {[%clk 0:00:12]}  Ra4 {[%clk 0:00:09]} 30. d4 {[%clk 0:00:11]}  Qc3 {[%clk 0:00:04]} 31. Re3 {[%clk 0:00:11]}  Qxc5 {[%clk 0:00:03]} 32. Rf3+ {[%clk 0:00:10]}  Ke7 {[%clk 0:00:03]} 33. Qxg6 {[%clk 0:00:11]}  Qc1+ {[%clk 0:00:03]} 34. Kh2 {[%clk 0:00:10]}  Kd8 {[%clk 0:00:03]} 35. Qxg7 {[%clk 0:00:08]}  Rxd4 {[%clk 0:00:03]} 36. Rf8+ {[%clk 0:00:05]}  Be8 {[%clk 0:00:03]} 37. Qxb7 {[%clk 0:00:04]}  Rxh4+ {[%clk 0:00:03]} 38. Kg3 {[%clk 0:00:03]}  Qg5+ {[%clk 0:00:03]} 39. Kf3 {[%clk 0:00:04]}  Qg4+ {[%clk 0:00:04]} 40. Ke3 {[%clk 0:00:04]}  Qd4+ {[%clk 0:00:04]} 41. Kf3 {[%clk 0:00:04]}  Qe4+ {[%clk 0:00:05]} 42. Kg3 {[%clk 0:00:04]}  Qg4# {[%clk 0:00:05]} 0-1


[Site "https://www.chess.com"]

[Event "Titled Tuesday Blitz November 01 Early 2022"]
[White "Viana Da Costa, Fernando"]
[Black "Grot, Blazej"]
[WhiteFideId "2111900"]
[BlackFideId "21835845"]
[WhiteElo "2277"]
[BlackElo "1739"]
[Result "1-0"]
[Round "04"]
[TimeControl "180+1"]
[Date "2022.11.02"]
[WhiteClock "0:00:03"]
[BlackClock "0:00:10"]

1. e4 {[%clk 0:03:00]}  c5 {[%clk 0:02:58]} 2. Nf3 {[%clk 0:03:00]}  e6 {[%clk 0:02:58]} 3. Nc3 {[%clk 0:02:59]}  Nc6 {[%clk 0:02:57]} 4. Bb5 {[%clk 0:02:59]}  Nge7 {[%clk 0:02:56]} 5. O-O {[%clk 0:02:58]}  a6 {[%clk 0:02:56]} 6. Bxc6 {[%clk 0:02:58]}  Nxc6 {[%clk 0:02:56]} 7. d4 {[%clk 0:02:59]}  cxd4 {[%clk 0:02:56]} 8. Nxd4 {[%clk 0:02:59]}  Be7 {[%clk 0:02:55]} 9. Nxc6 {[%clk 0:02:58]}  dxc6 {[%clk 0:02:52]} 10. e5 {[%clk 0:02:41]}  Qc7 {[%clk 0:02:48]} 11. Re1 {[%clk 0:02:22]}  b5 {[%clk 0:02:47]} 12. Qg4 {[%clk 0:02:19]}  g6 {[%clk 0:02:43]} 13. Bg5 {[%clk 0:02:01]}  Bb7 {[%clk 0:02:40]} 14. Bxe7 {[%clk 0:01:59]}  Qxe7 {[%clk 0:02:40]} 15. Ne4 {[%clk 0:01:58]}  Kf8 {[%clk 0:02:33]} 16. Nf6 {[%clk 0:01:50]}  Kg7 {[%clk 0:02:31]} 17. h4 {[%clk 0:01:39]}  h5 {[%clk 0:02:29]} 18. Qg5 {[%clk 0:01:39]}  Qc7 {[%clk 0:02:20]} 19. Rad1 {[%clk 0:01:31]}  Rad8 {[%clk 0:02:19]} 20. Rxd8 {[%clk 0:01:30]}  Qxd8 {[%clk 0:02:18]} 21. Nxh5+ {[%clk 0:01:30]}  Kh7 {[%clk 0:02:11]} 22. Nf6+ {[%clk 0:01:28]}  Kg7 {[%clk 0:02:11]} 23. h5 {[%clk 0:01:23]}  Qd4 {[%clk 0:01:57]} 24. c3 {[%clk 0:01:10]}  Qd3 {[%clk 0:01:41]} 25. Re3 {[%clk 0:00:45]}  Qb1+ {[%clk 0:01:19]} 26. Kh2 {[%clk 0:00:44]}  Qxb2 {[%clk 0:01:19]} 27. Rh3 {[%clk 0:00:40]}  Qxf2 {[%clk 0:00:52]} 28. h6+ {[%clk 0:00:27]}  Kf8 {[%clk 0:00:51]} 29. Nd7+ {[%clk 0:00:09]}  Ke8 {[%clk 0:00:51]} 30. Qf6 {[%clk 0:00:09]}  Qxf6 {[%clk 0:00:45]} 31. Nxf6+ {[%clk 0:00:07]}  Ke7 {[%clk 0:00:44]} 32. h7 {[%clk 0:00:08]}  c5 {[%clk 0:00:40]} 33. Rd3 {[%clk 0:00:04]}  Bc6 {[%clk 0:00:35]} 34. Rd6 {[%clk 0:00:03]}  Be8 {[%clk 0:00:14]} 35. Rxa6 {[%clk 0:00:03]}  c4 {[%clk 0:00:10]} 36. Ra8 {[%clk 0:00:03]} 1-0


[Site "https://www.chess.com"]

[Event "Titled Tuesday Blitz November 01 Early 2022"]
[White "Warchol, Kamil"]
[Black "Bagwe Gaurang"]
[WhiteFideId "21858241"]
[BlackFideId "45039895"]
[WhiteElo "2001"]
[BlackElo "1931"]
[Result "0-1"]
[Round "04"]
[TimeControl "180+1"]
[Date "2022.11.02"]
[WhiteClock "0:00:19"]
[BlackClock "0:01:56"]

1. e4 {[%clk 0:02:53]}  c5 {[%clk 0:02:59]} 2. Nf3 {[%clk 0:02:52]}  d6 {[%clk 0:02:56]} 3. d4 {[%clk 0:02:51]}  cxd4 {[%clk 0:02:56]} 4. Nxd4 {[%clk 0:02:52]}  Nf6 {[%clk 0:02:56]} 5. Nc3 {[%clk 0:02:52]}  a6 {[%clk 0:02:55]} 6. f4 {[%clk 0:02:48]}  Nc6 {[%clk 0:02:53]} 7. Bc4 {[%clk 0:02:44]}  e6 {[%clk 0:02:51]} 8. Be3 {[%clk 0:02:36]}  Qc7 {[%clk 0:02:48]} 9. Bb3 {[%clk 0:02:20]}  b5 {[%clk 0:02:48]} 10. a3 {[%clk 0:02:07]}  Bb7 {[%clk 0:02:43]} 11. O-O {[%clk 0:02:03]}  Be7 {[%clk 0:02:39]} 12. Kh1 {[%clk 0:01:41]}  O-O {[%clk 0:02:35]} 13. Qd3 {[%clk 0:01:32]}  Na5 {[%clk 0:02:31]} 14. Bg1 {[%clk 0:01:21]}  Nxb3 {[%clk 0:02:26]} 15. Nxb3 {[%clk 0:01:18]}  d5 {[%clk 0:02:24]} 16. e5 {[%clk 0:01:17]}  Ne4 {[%clk 0:02:23]} 17. Nxe4 {[%clk 0:01:11]}  dxe4 {[%clk 0:02:24]} 18. Qe3 {[%clk 0:01:10]}  Qxc2 {[%clk 0:02:22]} 19. Nc5 {[%clk 0:01:01]}  Bd5 {[%clk 0:02:07]} 20. Rf2 {[%clk 0:00:50]}  Qxc5 {[%clk 0:02:06]} 21. Qg3 {[%clk 0:00:40]}  Qc6 {[%clk 0:01:59]} 22. f5 {[%clk 0:00:23]}  exf5 {[%clk 0:01:56]} 23. Rxf5 {[%clk 0:00:19]}  Qg6 {[%clk 0:01:56]} 0-1


[Site "https://www.chess.com"]

[Event "Titled Tuesday Blitz November 01 Early 2022"]
[White "Wessendorf, Thomas, Dr."]
[Black "Hajiyev, Kanan"]
[WhiteFideId "4604270"]
[BlackFideId "13404148"]
[WhiteElo "2280"]
[BlackElo "2118"]
[Result "1-0"]
[Round "04"]
[TimeControl "180+1"]
[Date "2022.11.02"]
[WhiteClock "0:00:31"]
[BlackClock "0:00:30"]

1. e4 {[%clk 0:03:00]}  c6 {[%clk 0:02:58]} 2. d3 {[%clk 0:02:59]}  d5 {[%clk 0:02:59]} 3. Nd2 {[%clk 0:02:59]}  a6 {[%clk 0:02:57]} 4. Ngf3 {[%clk 0:02:55]}  Bg4 {[%clk 0:02:54]} 5. h3 {[%clk 0:02:54]}  Bh5 {[%clk 0:02:53]} 6. g4 {[%clk 0:02:53]}  Bg6 {[%clk 0:02:53]} 7. Bg2 {[%clk 0:02:52]}  e6 {[%clk 0:02:53]} 8. O-O {[%clk 0:02:45]}  Bd6 {[%clk 0:02:54]} 9. Qe2 {[%clk 0:02:38]}  h5 {[%clk 0:02:52]} 10. e5 {[%clk 0:02:38]}  Bc7 {[%clk 0:02:44]} 11. Nd4 {[%clk 0:02:35]}  hxg4 {[%clk 0:02:41]} 12. hxg4 {[%clk 0:02:31]}  c5 {[%clk 0:02:37]} 13. N4f3 {[%clk 0:02:28]}  Nc6 {[%clk 0:02:35]} 14. Re1 {[%clk 0:02:26]}  Nh6 {[%clk 0:02:24]} 15. Nf1 {[%clk 0:02:14]}  Nxg4 {[%clk 0:02:21]} 16. Bg5 {[%clk 0:02:13]}  Qb8 {[%clk 0:02:16]} 17. Bf4 {[%clk 0:02:09]}  Ncxe5 {[%clk 0:02:08]} 18. Nxe5 {[%clk 0:02:06]}  Bh5 {[%clk 0:02:02]} 19. Bf3 {[%clk 0:01:54]}  Bxe5 {[%clk 0:01:44]} 20. Bxe5 {[%clk 0:01:46]}  Nxe5 {[%clk 0:01:32]} 21. Bxh5 {[%clk 0:01:46]}  g6 {[%clk 0:01:29]} 22. Qxe5 {[%clk 0:01:43]}  Qxe5 {[%clk 0:01:15]} 23. Rxe5 {[%clk 0:01:43]}  gxh5 {[%clk 0:01:14]} 24. Rae1 {[%clk 0:01:42]}  Kd7 {[%clk 0:01:13]} 25. c4 {[%clk 0:01:40]}  dxc4 {[%clk 0:01:08]} 26. dxc4 {[%clk 0:01:39]}  Rag8+ {[%clk 0:01:06]} 27. Kh2 {[%clk 0:01:38]}  Rg4 {[%clk 0:01:06]} 28. R1e4 {[%clk 0:01:33]}  Rxe4 {[%clk 0:01:02]} 29. Rxe4 {[%clk 0:01:32]}  f5 {[%clk 0:01:02]} 30. Rh4 {[%clk 0:01:21]}  b5 {[%clk 0:00:56]} 31. Ng3 {[%clk 0:01:17]}  bxc4 {[%clk 0:00:53]} 32. Rxc4 {[%clk 0:01:17]}  h4 {[%clk 0:00:51]} 33. Ne2 {[%clk 0:01:17]}  Kd6 {[%clk 0:00:50]} 34. Nc3 {[%clk 0:01:11]}  e5 {[%clk 0:00:49]} 35. Ra4 {[%clk 0:01:08]}  e4 {[%clk 0:00:43]} 36. Rxa6+ {[%clk 0:01:05]}  Ke5 {[%clk 0:00:44]} 37. a4 {[%clk 0:00:50]}  f4 {[%clk 0:00:43]} 38. Rc6 {[%clk 0:00:48]}  Kd4 {[%clk 0:00:43]} 39. Rd6+ {[%clk 0:00:45]}  Kc4 {[%clk 0:00:42]} 40. Nxe4 {[%clk 0:00:44]}  Re8 {[%clk 0:00:37]} 41. f3 {[%clk 0:00:42]}  Kb4 {[%clk 0:00:35]} 42. Rf6 {[%clk 0:00:36]}  c4 {[%clk 0:00:31]} 43. Rxf4 {[%clk 0:00:35]}  Kxa4 {[%clk 0:00:31]} 44. Nd6 {[%clk 0:00:32]}  Re2+ {[%clk 0:00:30]} 45. Kh3 {[%clk 0:00:31]}  Rxb2 {[%clk 0:00:28]} 46. Nxc4 {[%clk 0:00:32]}  Rb4 {[%clk 0:00:28]} 47. Nb6+ {[%clk 0:00:31]}  Kb5 {[%clk 0:00:27]} 48. Rxb4+ {[%clk 0:00:31]}  Kxb4 {[%clk 0:00:28]} 49. Kxh4 {[%clk 0:00:32]}  Kc5 {[%clk 0:00:29]} 50. Kg5 {[%clk 0:00:32]}  Kxb6 {[%clk 0:00:28]} 51. f4 {[%clk 0:00:31]}  Kc7 {[%clk 0:00:29]} 52. Kg6 {[%clk 0:00:31]}  Kd8 {[%clk 0:00:30]} 53. f5 {[%clk 0:00:31]}  Ke8 {[%clk 0:00:30]} 54. Kg7 {[%clk 0:00:31]}  Ke7 {[%clk 0:00:30]} 55. f6+ {[%clk 0:00:31]} 1-0


[Site "https://www.chess.com"]

[Event "Titled Tuesday Blitz November 01 Early 2022"]
[White "Zakhartsov, Vladimir"]
[Black "Principe, Gerson"]
[WhiteFideId "4145097"]
[BlackFideId "3804550"]
[WhiteElo "2492"]
[BlackElo "2280"]
[Result "1/2-1/2"]
[Round "04"]
[TimeControl "180+1"]
[Date "2022.11.02"]
[WhiteClock "0:00:04"]
[BlackClock "0:00:06"]

1. e4 {[%clk 0:02:57]}  c6 {[%clk 0:02:57]} 2. Nf3 {[%clk 0:02:53]}  d5 {[%clk 0:02:57]} 3. Nc3 {[%clk 0:02:54]}  Bg4 {[%clk 0:02:57]} 4. h3 {[%clk 0:02:49]}  Bxf3 {[%clk 0:02:57]} 5. Qxf3 {[%clk 0:02:50]}  e6 {[%clk 0:02:54]} 6. Be2 {[%clk 0:02:33]}  Nf6 {[%clk 0:02:52]} 7. O-O {[%clk 0:02:21]}  dxe4 {[%clk 0:02:48]} 8. Nxe4 {[%clk 0:02:19]}  Nbd7 {[%clk 0:02:47]} 9. d4 {[%clk 0:02:13]}  Nxe4 {[%clk 0:02:44]} 10. Qxe4 {[%clk 0:02:13]}  Nf6 {[%clk 0:02:45]} 11. Qd3 {[%clk 0:02:11]}  Be7 {[%clk 0:02:45]} 12. c3 {[%clk 0:01:53]}  O-O {[%clk 0:02:43]} 13. Rd1 {[%clk 0:01:46]}  Rc8 {[%clk 0:02:38]} 14. Bf4 {[%clk 0:01:43]}  Qb6 {[%clk 0:02:31]} 15. Rab1 {[%clk 0:01:39]}  c5 {[%clk 0:02:28]} 16. dxc5 {[%clk 0:01:34]}  Bxc5 {[%clk 0:02:25]} 17. Qf3 {[%clk 0:01:31]}  Rfd8 {[%clk 0:02:11]} 18. b4 {[%clk 0:01:22]}  Be7 {[%clk 0:01:50]} 19. Be3 {[%clk 0:01:14]}  Qc7 {[%clk 0:01:49]} 20. Bd4 {[%clk 0:01:14]}  b6 {[%clk 0:01:43]} 21. Ba6 {[%clk 0:01:08]}  Rb8 {[%clk 0:01:42]} 22. Re1 {[%clk 0:01:09]}  Nd5 {[%clk 0:01:24]} 23. Bd3 {[%clk 0:01:02]}  Bf6 {[%clk 0:01:18]} 24. Bxf6 {[%clk 0:00:58]}  Nxf6 {[%clk 0:01:18]} 25. Rbc1 {[%clk 0:00:59]}  Rd6 {[%clk 0:01:03]} 26. Bb1 {[%clk 0:00:41]}  Rbd8 {[%clk 0:01:01]} 27. c4 {[%clk 0:00:34]}  Rd4 {[%clk 0:00:54]} 28. Qb3 {[%clk 0:00:26]}  Rd2 {[%clk 0:00:38]} 29. Qe3 {[%clk 0:00:19]}  h6 {[%clk 0:00:35]} 30. c5 {[%clk 0:00:19]}  bxc5 {[%clk 0:00:35]} 31. Rxc5 {[%clk 0:00:20]}  Qb6 {[%clk 0:00:31]} 32. a3 {[%clk 0:00:20]}  R2d5 {[%clk 0:00:22]} 33. Rxd5 {[%clk 0:00:12]}  Rxd5 {[%clk 0:00:19]} 34. Qc3 {[%clk 0:00:10]}  Rd8 {[%clk 0:00:16]} 35. g3 {[%clk 0:00:07]}  Qd6 {[%clk 0:00:16]} 36. Kg2 {[%clk 0:00:07]}  Qd5+ {[%clk 0:00:13]} 37. Qf3 {[%clk 0:00:07]}  Qd6 {[%clk 0:00:12]} 38. Bc2 {[%clk 0:00:06]}  Qb6 {[%clk 0:00:12]} 39. h4 {[%clk 0:00:05]}  a5 {[%clk 0:00:12]} 40. Rb1 {[%clk 0:00:05]}  axb4 {[%clk 0:00:12]} 41. Rxb4 {[%clk 0:00:05]}  Qa5 {[%clk 0:00:12]} 42. Qc3 {[%clk 0:00:04]}  Nd5 {[%clk 0:00:10]} 43. Qd3 {[%clk 0:00:02]}  Nxb4 {[%clk 0:00:09]} 44. Qh7+ {[%clk 0:00:03]}  Kf8 {[%clk 0:00:09]} 45. axb4 {[%clk 0:00:03]}  Qd5+ {[%clk 0:00:08]} 46. Be4 {[%clk 0:00:03]}  Qe5 {[%clk 0:00:08]} 47. b5 {[%clk 0:00:03]}  Qxb5 {[%clk 0:00:06]} 48. Qh8+ {[%clk 0:00:02]}  Ke7 {[%clk 0:00:07]} 49. Qxg7 {[%clk 0:00:03]}  Qc5 {[%clk 0:00:04]} 50. Qxh6 {[%clk 0:00:03]}  Qd4 {[%clk 0:00:05]} 51. Bf3 {[%clk 0:00:03]}  Qf6 {[%clk 0:00:06]} 52. Qe3 {[%clk 0:00:03]}  Qd4 {[%clk 0:00:05]} 53. Qa3+ {[%clk 0:00:03]}  Qd6 {[%clk 0:00:06]} 54. Qe3 {[%clk 0:00:04]}  Qd4 {[%clk 0:00:06]} 55. Qg5+ {[%clk 0:00:04]}  Qf6 {[%clk 0:00:06]} 56. Qe3 {[%clk 0:00:04]}  Qd4 {[%clk 0:00:06]} 1/2-1/2


[Site "https://www.chess.com"]

[Event "Titled Tuesday Blitz November 01 Early 2022"]
[White "parintele_chess"]
[Black "Khamdamova, Afruza"]
[BlackFideId "14210444"]
[WhiteElo "2214"]
[BlackElo "2018"]
[Result "0-1"]
[Round "04"]
[TimeControl "180+1"]
[Date "2022.11.02"]
[WhiteClock "0:00:09"]
[BlackClock "0:00:07"]

1. d4 {[%clk 0:02:58]}  Nf6 {[%clk 0:02:59]} 2. Bf4 {[%clk 0:02:58]}  d5 {[%clk 0:02:58]} 3. Nf3 {[%clk 0:02:54]}  c5 {[%clk 0:02:57]} 4. e3 {[%clk 0:02:54]}  Nc6 {[%clk 0:02:57]} 5. Nbd2 {[%clk 0:02:52]}  Qb6 {[%clk 0:02:57]} 6. dxc5 {[%clk 0:02:48]}  Qxb2 {[%clk 0:02:57]} 7. Rb1 {[%clk 0:02:47]}  Qc3 {[%clk 0:02:57]} 8. Bb5 {[%clk 0:02:39]}  e6 {[%clk 0:02:54]} 9. O-O {[%clk 0:02:33]}  Qxc5 {[%clk 0:02:44]} 10. c4 {[%clk 0:02:12]}  Be7 {[%clk 0:02:40]} 11. cxd5 {[%clk 0:02:08]}  Nxd5 {[%clk 0:02:34]} 12. Ne4 {[%clk 0:02:06]}  Qa3 {[%clk 0:01:45]} 13. Rb3 {[%clk 0:01:45]}  Qa5 {[%clk 0:01:41]} 14. Nd6+ {[%clk 0:01:42]}  Bxd6 {[%clk 0:01:40]} 15. Bxd6 {[%clk 0:01:43]}  Bd7 {[%clk 0:01:37]} 16. Qd3 {[%clk 0:01:18]}  Qd8 {[%clk 0:00:43]} 17. e4 {[%clk 0:01:00]}  Nf6 {[%clk 0:00:33]} 18. Qe2 {[%clk 0:00:43]}  Na5 {[%clk 0:00:30]} 19. Bxd7+ {[%clk 0:00:32]}  Qxd7 {[%clk 0:00:29]} 20. Rd3 {[%clk 0:00:32]}  Qc6 {[%clk 0:00:21]} 21. Ne5 {[%clk 0:00:22]}  Qxe4 {[%clk 0:00:19]} 22. Re3 {[%clk 0:00:22]}  Qa4 {[%clk 0:00:15]} 23. Nxf7 {[%clk 0:00:12]}  Kxf7 {[%clk 0:00:14]} 24. Rxe6 {[%clk 0:00:12]}  Rhe8 {[%clk 0:00:10]} 25. Re1 {[%clk 0:00:13]}  Kg8 {[%clk 0:00:09]} 26. Re7 {[%clk 0:00:12]}  Rxe7 {[%clk 0:00:09]} 27. Bxe7 {[%clk 0:00:12]}  Re8 {[%clk 0:00:09]} 28. Qe6+ {[%clk 0:00:12]}  Kh8 {[%clk 0:00:08]} 29. Qf7 {[%clk 0:00:09]}  Qc6 {[%clk 0:00:07]} 0-1


[Site "https://www.chess.com"]